[Event "Titled Tuesday Blitz May 11 2021"]
[White "Urazayev, Arystanbek"]
[Black "Le, Tuan Minh"]
[WhiteFideId "13709810"]
[BlackFideId "12401153"]
[WhiteElo "2321"]
[BlackElo "2450"]
[Result "1-0"]
[Round "08"]
[TimeControl "180+1"]
[Date "2021.05.11"]
[WhiteClock "0:00:07"]
[BlackClock "0:00:03"]

1. e4 {[%clk 0:03:00]}  c5 {[%clk 0:02:59]} 2. Nf3 {[%clk 0:03:01]}  Nf6 {[%clk 0:02:59]} 3. e5 {[%clk 0:02:54]}  Nd5 {[%clk 0:02:58]} 4. c3 {[%clk 0:02:55]}  Nc6 {[%clk 0:02:57]} 5. Bc4 {[%clk 0:02:53]}  Nb6 {[%clk 0:02:55]} 6. Bb3 {[%clk 0:02:53]}  d5 {[%clk 0:02:55]} 7. exd6 {[%clk 0:02:52]}  c4 {[%clk 0:02:55]} 8. Bc2 {[%clk 0:02:49]}  Qxd6 {[%clk 0:02:56]} 9. b3 {[%clk 0:02:21]}  Qe6+ {[%clk 0:02:38]} 10. Kf1 {[%clk 0:02:17]}  g6 {[%clk 0:02:33]} 11. Na3 {[%clk 0:02:17]}  cxb3 {[%clk 0:02:26]} 12. axb3 {[%clk 0:02:14]}  Bg7 {[%clk 0:02:23]} 13. h4 {[%clk 0:02:02]}  h6 {[%clk 0:02:15]} 14. d4 {[%clk 0:02:01]}  O-O {[%clk 0:02:08]} 15. Qd3 {[%clk 0:01:54]}  Qf6 {[%clk 0:02:02]} 16. Be3 {[%clk 0:01:45]}  Nd5 {[%clk 0:02:01]} 17. Nc4 {[%clk 0:01:31]}  Rd8 {[%clk 0:01:53]} 18. Qd2 {[%clk 0:01:22]}  Bf5 {[%clk 0:01:45]} 19. Bxf5 {[%clk 0:01:18]}  Qxf5 {[%clk 0:01:46]} 20. Bxh6 {[%clk 0:01:12]}  Bf6 {[%clk 0:01:31]} 21. Ne3 {[%clk 0:01:00]}  Nxe3+ {[%clk 0:01:31]} 22. Bxe3 {[%clk 0:01:00]}  e5 {[%clk 0:01:31]} 23. h5 {[%clk 0:00:48]}  gxh5 {[%clk 0:01:29]} 24. Qe2 {[%clk 0:00:36]}  exd4 {[%clk 0:00:40]} 25. Nxd4 {[%clk 0:00:36]}  Nxd4 {[%clk 0:00:23]} 26. cxd4 {[%clk 0:00:35]}  Rd5 {[%clk 0:00:22]} 27. Rh3 {[%clk 0:00:25]}  a6 {[%clk 0:00:21]} 28. Rf3 {[%clk 0:00:20]}  Qe6 {[%clk 0:00:18]} 29. Rg3+ {[%clk 0:00:20]}  Kh8 {[%clk 0:00:11]} 30. Re1 {[%clk 0:00:19]}  Rg8 {[%clk 0:00:10]} 31. Rh3 {[%clk 0:00:19]}  Qg4 {[%clk 0:00:09]} 32. Qxg4 {[%clk 0:00:11]}  Rxg4 {[%clk 0:00:10]} 33. f3 {[%clk 0:00:11]}  Rh4 {[%clk 0:00:09]} 34. Rxh4 {[%clk 0:00:08]}  Bxh4 {[%clk 0:00:10]} 35. Rc1 {[%clk 0:00:08]}  Rb5 {[%clk 0:00:09]} 36. Rc3 {[%clk 0:00:08]}  Kg7 {[%clk 0:00:09]} 37. Ke2 {[%clk 0:00:09]}  Kf6 {[%clk 0:00:08]} 38. Kd3 {[%clk 0:00:09]}  Ke6 {[%clk 0:00:09]} 39. Kc2 {[%clk 0:00:08]}  Be7 {[%clk 0:00:09]} 40. Rc7 {[%clk 0:00:08]}  Bd6 {[%clk 0:00:09]} 41. Rc8 {[%clk 0:00:08]}  Ra5 {[%clk 0:00:09]} 42. Rh8 {[%clk 0:00:08]}  Ra2+ {[%clk 0:00:09]} 43. Kd3 {[%clk 0:00:09]}  Rxg2 {[%clk 0:00:10]} 44. Rh6+ {[%clk 0:00:09]}  f6 {[%clk 0:00:09]} 45. Rxh5 {[%clk 0:00:09]}  Rb2 {[%clk 0:00:09]} 46. Kc3 {[%clk 0:00:08]}  Re2 {[%clk 0:00:10]} 47. Kd3 {[%clk 0:00:09]}  Rb2 {[%clk 0:00:10]} 48. d5+ {[%clk 0:00:09]}  Kf7 {[%clk 0:00:08]} 49. Kc3 {[%clk 0:00:09]}  Re2 {[%clk 0:00:09]} 50. Bd4 {[%clk 0:00:08]}  Kg6 {[%clk 0:00:07]} 51. Rh8 {[%clk 0:00:08]}  Re1 {[%clk 0:00:04]} 52. Rd8 {[%clk 0:00:08]}  Bf4 {[%clk 0:00:04]} 53. d6 {[%clk 0:00:07]}  Kf7 {[%clk 0:00:04]} 54. Rd7+ {[%clk 0:00:07]}  Ke8 {[%clk 0:00:04]} 55. Rxb7 {[%clk 0:00:07]}  Bxd6 {[%clk 0:00:04]} 56. Bxf6 {[%clk 0:00:07]}  Re3+ {[%clk 0:00:04]} 57. Kc4 {[%clk 0:00:07]}  Rxf3 {[%clk 0:00:05]} 58. Bd4 {[%clk 0:00:07]}  Be7 {[%clk 0:00:05]} 59. Ra7 {[%clk 0:00:07]}  Rf1 {[%clk 0:00:03]} 60. Rxa6 {[%clk 0:00:07]}  Rf5 {[%clk 0:00:04]} 61. Ra7 {[%clk 0:00:07]}  Rf4 {[%clk 0:00:03]} 62. Kd5 {[%clk 0:00:07]}  Rf5+ {[%clk 0:00:03]} 63. Ke6 {[%clk 0:00:07]} 1-0


[Site "https://www.chess.com"]

[Event "Titled Tuesday Blitz May 11 2021"]
[White "Yoo, Christopher Woojin"]
[Black "Belous, Vladimir"]
[WhiteFideId "30909694"]
[BlackFideId "4174003"]
[WhiteElo "2009"]
[BlackElo "2583"]
[Result "0-1"]
[Round "08"]
[TimeControl "180+1"]
[Date "2021.05.11"]
[WhiteClock "0:01:35"]
[BlackClock "0:01:53"]

1. e4 {[%clk 0:03:00]}  c5 {[%clk 0:02:59]} 2. Nf3 {[%clk 0:02:59]}  Nc6 {[%clk 0:02:59]} 3. c3 {[%clk 0:02:55]}  Nf6 {[%clk 0:02:59]} 4. e5 {[%clk 0:02:55]}  Nd5 {[%clk 0:02:59]} 5. d4 {[%clk 0:02:54]}  cxd4 {[%clk 0:03:00]} 6. Qb3 {[%clk 0:02:54]}  Nc7 {[%clk 0:02:48]} 7. Bc4 {[%clk 0:02:48]}  e6 {[%clk 0:02:47]} 8. cxd4 {[%clk 0:02:45]}  Na5 {[%clk 0:02:47]} 9. Qc2 {[%clk 0:02:45]}  Nxc4 {[%clk 0:02:47]} 10. Qxc4 {[%clk 0:02:46]}  b6 {[%clk 0:02:48]} 11. Bg5 {[%clk 0:02:44]}  f6 {[%clk 0:02:38]} 12. exf6 {[%clk 0:02:44]}  gxf6 {[%clk 0:02:36]} 13. Bxf6 {[%clk 0:02:44]}  Qxf6 {[%clk 0:02:37]} 14. Qxc7 {[%clk 0:02:44]}  Rg8 {[%clk 0:02:32]} 15. Rg1 {[%clk 0:02:34]}  Bb4+ {[%clk 0:02:20]} 16. Kd1 {[%clk 0:01:46]}  Rxg2 {[%clk 0:02:15]} 17. Nbd2 {[%clk 0:01:35]}  Bxd2 {[%clk 0:01:53]} 0-1


[Site "https://www.chess.com"]

[Event "Titled Tuesday Blitz May 11 2021"]
[White "Yuan, Qingyu"]
[Black "Shimanov, Aleksandr"]
[WhiteFideId "8609772"]
[BlackFideId "4198603"]
[WhiteElo "2359"]
[BlackElo "2596"]
[Result "1-0"]
[Round "08"]
[TimeControl "180+1"]
[Date "2021.05.11"]
[WhiteClock "0:00:10"]
[BlackClock "0:00:03"]

1. e4 {[%clk 0:03:00]}  c6 {[%clk 0:02:59]} 2. d4 {[%clk 0:03:00]}  d5 {[%clk 0:02:59]} 3. e5 {[%clk 0:03:01]}  Bf5 {[%clk 0:02:59]} 4. Nd2 {[%clk 0:03:01]}  e6 {[%clk 0:02:58]} 5. Nb3 {[%clk 0:03:02]}  Nd7 {[%clk 0:02:57]} 6. Nf3 {[%clk 0:03:02]}  h6 {[%clk 0:02:56]} 7. Be2 {[%clk 0:03:02]}  Ne7 {[%clk 0:02:55]} 8. O-O {[%clk 0:03:02]}  a5 {[%clk 0:02:53]} 9. a4 {[%clk 0:03:01]}  g5 {[%clk 0:02:53]} 10. Bd2 {[%clk 0:02:50]}  Qc7 {[%clk 0:02:50]} 11. Ne1 {[%clk 0:02:44]}  c5 {[%clk 0:02:43]} 12. dxc5 {[%clk 0:02:24]}  Nc6 {[%clk 0:02:34]} 13. Bb5 {[%clk 0:02:06]}  Bg7 {[%clk 0:02:19]} 14. Nd3 {[%clk 0:01:46]}  Bxd3 {[%clk 0:02:06]} 15. cxd3 {[%clk 0:01:43]}  Bxe5 {[%clk 0:02:07]} 16. Qh5 {[%clk 0:01:24]}  Nf6 {[%clk 0:01:51]} 17. Qh3 {[%clk 0:01:23]}  Ke7 {[%clk 0:01:32]} 18. Rae1 {[%clk 0:01:13]}  Bf4 {[%clk 0:01:26]} 19. Bc3 {[%clk 0:01:08]}  Ne5 {[%clk 0:00:47]} 20. Bxe5 {[%clk 0:00:38]}  Bxe5 {[%clk 0:00:47]} 21. d4 {[%clk 0:00:37]}  Bf4 {[%clk 0:00:47]} 22. g3 {[%clk 0:00:37]}  g4 {[%clk 0:00:45]} 23. Qg2 {[%clk 0:00:38]}  Bg5 {[%clk 0:00:45]} 24. f4 {[%clk 0:00:29]}  gxf3 {[%clk 0:00:45]} 25. Qxf3 {[%clk 0:00:28]}  Rag8 {[%clk 0:00:40]} 26. Re5 {[%clk 0:00:27]}  Rg6 {[%clk 0:00:14]} 27. Bd3 {[%clk 0:00:27]}  Rhg8 {[%clk 0:00:12]} 28. Bxg6 {[%clk 0:00:24]}  Rxg6 {[%clk 0:00:13]} 29. Kh1 {[%clk 0:00:24]}  Ke8 {[%clk 0:00:02]} 30. h4 {[%clk 0:00:21]}  Ne4 {[%clk 0:00:01]} 31. hxg5 {[%clk 0:00:17]}  hxg5 {[%clk 0:00:02]} 32. Rxe4 {[%clk 0:00:15]}  dxe4 {[%clk 0:00:02]} 33. Qxe4 {[%clk 0:00:16]}  Rh6+ {[%clk 0:00:02]} 34. Kg2 {[%clk 0:00:16]}  Qd7 {[%clk 0:00:01]} 35. Qf3 {[%clk 0:00:10]}  Kf8 {[%clk 0:00:01]} 36. Nd2 {[%clk 0:00:09]}  Kg7 {[%clk 0:00:01]} 37. Ne4 {[%clk 0:00:09]}  f5 {[%clk 0:00:01]} 38. Nd6 {[%clk 0:00:09]}  g4 {[%clk 0:00:01]} 39. Qxb7 {[%clk 0:00:09]}  Qxb7+ {[%clk 0:00:02]} 40. Nxb7 {[%clk 0:00:10]}  Kf6 {[%clk 0:00:03]} 41. Nd6 {[%clk 0:00:10]}  Rh7 {[%clk 0:00:03]} 42. c6 {[%clk 0:00:10]} 1-0


[Site "https://www.chess.com"]

[Event "Titled Tuesday Blitz May 11 2021"]
[White "Artemiev, Vladislav"]
[Black "Jobava, Baadur"]
[WhiteFideId "24101605"]
[BlackFideId "13601520"]
[WhiteElo "2783"]
[BlackElo "2748"]
[Result "1-0"]
[Round "09"]
[TimeControl "180+1"]
[Date "2021.05.11"]
[WhiteClock "0:00:06"]
[BlackClock "0:00:01"]

1. e4 {[%clk 0:03:00]}  e5 {[%clk 0:02:59]} 2. Nf3 {[%clk 0:02:58]}  Nf6 {[%clk 0:02:59]} 3. Nc3 {[%clk 0:02:57]}  d6 {[%clk 0:02:59]} 4. Bc4 {[%clk 0:02:51]}  Be7 {[%clk 0:02:58]} 5. d3 {[%clk 0:02:49]}  c6 {[%clk 0:02:56]} 6. O-O {[%clk 0:02:42]}  O-O {[%clk 0:02:56]} 7. a3 {[%clk 0:02:23]}  Nbd7 {[%clk 0:02:55]} 8. Re1 {[%clk 0:02:22]}  h6 {[%clk 0:02:54]} 9. Ba2 {[%clk 0:02:20]}  Re8 {[%clk 0:02:54]} 10. Ne2 {[%clk 0:02:19]}  Nf8 {[%clk 0:02:54]} 11. Ng3 {[%clk 0:02:18]}  Be6 {[%clk 0:02:54]} 12. c3 {[%clk 0:02:01]}  Bxa2 {[%clk 0:02:54]} 13. Rxa2 {[%clk 0:02:01]}  Ng6 {[%clk 0:02:51]} 14. b4 {[%clk 0:01:32]}  Bf8 {[%clk 0:02:49]} 15. Qb3 {[%clk 0:01:25]}  a5 {[%clk 0:02:27]} 16. a4 {[%clk 0:01:24]}  axb4 {[%clk 0:02:25]} 17. cxb4 {[%clk 0:01:24]}  d5 {[%clk 0:02:24]} 18. h3 {[%clk 0:01:11]}  Qb6 {[%clk 0:02:13]} 19. Bd2 {[%clk 0:01:08]}  Rad8 {[%clk 0:02:01]} 20. Rb2 {[%clk 0:00:55]}  Nf4 {[%clk 0:01:57]} 21. Nxe5 {[%clk 0:00:37]}  Nxh3+ {[%clk 0:01:50]} 22. gxh3 {[%clk 0:00:37]}  Rxe5 {[%clk 0:01:51]} 23. Kg2 {[%clk 0:00:34]}  Ree8 {[%clk 0:01:16]} 24. Be3 {[%clk 0:00:21]}  Qc7 {[%clk 0:01:13]} 25. b5 {[%clk 0:00:21]}  dxe4 {[%clk 0:01:08]} 26. bxc6 {[%clk 0:00:20]}  Qxc6 {[%clk 0:01:05]} 27. dxe4 {[%clk 0:00:20]}  Nxe4 {[%clk 0:01:03]} 28. Qxb7 {[%clk 0:00:21]}  Qg6 {[%clk 0:00:42]} 29. Rb6 {[%clk 0:00:12]}  Rd6 {[%clk 0:00:36]} 30. Rxd6 {[%clk 0:00:09]}  Bxd6 {[%clk 0:00:37]} 31. Bf4 {[%clk 0:00:10]}  Rb8 {[%clk 0:00:13]} 32. Qxe4 {[%clk 0:00:09]}  Bxf4 {[%clk 0:00:08]} 33. Qxf4 {[%clk 0:00:09]}  Ra8 {[%clk 0:00:05]} 34. Re4 {[%clk 0:00:07]}  Ra5 {[%clk 0:00:02]} 35. h4 {[%clk 0:00:06]}  Kh7 {[%clk 0:00:01]} 36. Rd4 {[%clk 0:00:06]} 1-0


[Site "https://www.chess.com"]

[Event "Titled Tuesday Blitz May 11 2021"]
[White "Borsuk, Konstantin"]
[Black "Narayanan.S.L"]
[WhiteFideId "14113406"]
[BlackFideId "5058422"]
[WhiteElo "2363"]
[BlackElo "2617"]
[Result "0-1"]
[Round "09"]
[TimeControl "180+1"]
[Date "2021.05.11"]
[WhiteClock "0:00:01"]
[BlackClock "0:01:30"]

1. d4 {[%clk 0:02:38]}  Nf6 {[%clk 0:02:59]} 2. c4 {[%clk 0:02:38]}  Nc6 {[%clk 0:02:58]} 3. Nf3 {[%clk 0:02:37]}  e6 {[%clk 0:02:57]} 4. a3 {[%clk 0:02:37]}  d6 {[%clk 0:02:57]} 5. Nc3 {[%clk 0:02:36]}  g6 {[%clk 0:02:58]} 6. e4 {[%clk 0:02:34]}  Bg7 {[%clk 0:02:58]} 7. Be2 {[%clk 0:02:34]}  O-O {[%clk 0:02:59]} 8. O-O {[%clk 0:02:28]}  Re8 {[%clk 0:02:58]} 9. h3 {[%clk 0:02:08]}  e5 {[%clk 0:02:57]} 10. dxe5 {[%clk 0:01:39]}  Nxe5 {[%clk 0:02:16]} 11. Nd4 {[%clk 0:01:25]}  c6 {[%clk 0:02:13]} 12. Bg5 {[%clk 0:01:22]}  Qb6 {[%clk 0:02:10]} 13. Rb1 {[%clk 0:01:17]}  Ned7 {[%clk 0:02:07]} 14. Be3 {[%clk 0:01:12]}  Qd8 {[%clk 0:02:04]} 15. f3 {[%clk 0:01:09]}  a5 {[%clk 0:02:02]} 16. Qd2 {[%clk 0:01:07]}  a4 {[%clk 0:02:01]} 17. Rfd1 {[%clk 0:01:00]}  Qa5 {[%clk 0:02:00]} 18. Nc2 {[%clk 0:00:56]}  Bf8 {[%clk 0:01:59]} 19. g4 {[%clk 0:00:47]}  Ne5 {[%clk 0:01:58]} 20. Kg2 {[%clk 0:00:46]}  Be6 {[%clk 0:01:58]} 21. Bg5 {[%clk 0:00:38]}  Nfd7 {[%clk 0:01:56]} 22. Ne3 {[%clk 0:00:36]}  Nxf3 {[%clk 0:01:55]} 23. Bxf3 {[%clk 0:00:28]}  Qxg5 {[%clk 0:01:56]} 24. h4 {[%clk 0:00:19]}  Qa5 {[%clk 0:01:48]} 25. Nf5 {[%clk 0:00:09]}  Ne5 {[%clk 0:01:45]} 26. Qg5 {[%clk 0:00:02]}  h6 {[%clk 0:01:33]} 27. Nxh6+ {[%clk 0:00:01]}  Bxh6 {[%clk 0:01:33]} 28. Qxh6 {[%clk 0:00:02]}  Bxg4 {[%clk 0:01:33]} 29. Bxg4 {[%clk 0:00:01]}  Nxg4 {[%clk 0:01:34]} 30. Qg5 {[%clk 0:00:01]}  Qxg5 {[%clk 0:01:34]} 31. hxg5 {[%clk 0:00:01]}  Ne3+ {[%clk 0:01:35]} 32. Kf3 {[%clk 0:00:02]}  Nxd1 {[%clk 0:01:36]} 33. Rxd1 {[%clk 0:00:02]}  Re5 {[%clk 0:01:36]} 34. Kf4 {[%clk 0:00:01]}  Rc5 {[%clk 0:01:34]} 35. Rxd6 {[%clk 0:00:01]}  Rxc4 {[%clk 0:01:35]} 36. Rd7 {[%clk 0:00:01]}  b5 {[%clk 0:01:36]} 37. Ke3 {[%clk 0:00:01]}  b4 {[%clk 0:01:35]} 38. axb4 {[%clk 0:00:01]}  Rxb4 {[%clk 0:01:36]} 39. e5 {[%clk 0:00:01]}  a3 {[%clk 0:01:32]} 40. bxa3 {[%clk 0:00:01]}  Rxa3 {[%clk 0:01:33]} 41. Kd2 {[%clk 0:00:01]}  Rb2+ {[%clk 0:01:30]} 42. Kc1 {[%clk 0:00:01]}  Rg2 {[%clk 0:01:31]} 43. Nb1 {[%clk 0:00:01]}  Re3 {[%clk 0:01:30]} 44. Nd2 {[%clk 0:00:01]}  Rxe5 {[%clk 0:01:30]} 0-1


[Site "https://www.chess.com"]

[Event "Titled Tuesday Blitz May 11 2021"]
[White "Dang, Hoang Son"]
[Black "Zhigalko, Sergei"]
[WhiteFideId "12402435"]
[BlackFideId "13502956"]
[WhiteElo "2248"]
[BlackElo "2662"]
[Result "0-1"]
[Round "09"]
[TimeControl "180+1"]
[Date "2021.05.11"]
[WhiteClock "0:00:03"]
[BlackClock "0:00:03"]

1. d4 {[%clk 0:03:00]}  Nf6 {[%clk 0:02:58]} 2. c4 {[%clk 0:03:01]}  e6 {[%clk 0:02:58]} 3. Nf3 {[%clk 0:03:01]}  b6 {[%clk 0:02:58]} 4. g3 {[%clk 0:03:02]}  Ba6 {[%clk 0:02:58]} 5. Qa4 {[%clk 0:03:02]}  Bb7 {[%clk 0:02:58]} 6. Bg2 {[%clk 0:03:02]}  c5 {[%clk 0:02:59]} 7. O-O {[%clk 0:03:03]}  cxd4 {[%clk 0:02:59]} 8. Nxd4 {[%clk 0:03:04]}  Bxg2 {[%clk 0:02:59]} 9. Kxg2 {[%clk 0:03:05]}  Qc7 {[%clk 0:03:00]} 10. Nc3 {[%clk 0:03:05]}  Be7 {[%clk 0:02:58]} 11. Rd1 {[%clk 0:03:04]}  a6 {[%clk 0:02:56]} 12. f3 {[%clk 0:03:04]}  O-O {[%clk 0:02:55]} 13. Bf4 {[%clk 0:02:40]}  Qb7 {[%clk 0:02:38]} 14. Rd2 {[%clk 0:02:03]}  Rc8 {[%clk 0:02:22]} 15. Rad1 {[%clk 0:01:55]}  h6 {[%clk 0:02:17]} 16. e4 {[%clk 0:01:42]}  d6 {[%clk 0:02:04]} 17. Nde2 {[%clk 0:01:33]}  Ne8 {[%clk 0:02:02]} 18. e5 {[%clk 0:01:13]}  dxe5 {[%clk 0:01:50]} 19. Bxe5 {[%clk 0:01:14]}  Nf6 {[%clk 0:01:42]} 20. Bxf6 {[%clk 0:00:58]}  Bxf6 {[%clk 0:01:30]} 21. Ne4 {[%clk 0:00:58]}  Be7 {[%clk 0:01:26]} 22. Nd6 {[%clk 0:00:58]}  Bxd6 {[%clk 0:01:12]} 23. Rxd6 {[%clk 0:00:59]}  Nc6 {[%clk 0:01:12]} 24. Qb3 {[%clk 0:00:30]}  Na5 {[%clk 0:00:34]} 25. Rxb6 {[%clk 0:00:27]}  Qc7 {[%clk 0:00:29]} 26. Qb4 {[%clk 0:00:26]}  Nxc4 {[%clk 0:00:28]} 27. Rb7 {[%clk 0:00:24]}  Ne3+ {[%clk 0:00:28]} 28. Kh3 {[%clk 0:00:15]}  Qc2 {[%clk 0:00:15]} 29. Qf4 {[%clk 0:00:06]}  Rf8 {[%clk 0:00:07]} 30. Re1 {[%clk 0:00:03]}  Nd5 {[%clk 0:00:04]} 31. Qe4 {[%clk 0:00:04]}  Qd2 {[%clk 0:00:04]} 32. Nf4 {[%clk 0:00:04]}  Nxf4+ {[%clk 0:00:04]} 33. gxf4 {[%clk 0:00:05]}  Rad8 {[%clk 0:00:04]} 34. Re2 {[%clk 0:00:05]}  Qd1 {[%clk 0:00:04]} 35. Rg2 {[%clk 0:00:05]}  Qf1 {[%clk 0:00:04]} 36. Qe2 {[%clk 0:00:03]}  Qxe2 {[%clk 0:00:03]} 37. Rxe2 {[%clk 0:00:04]}  Rd4 {[%clk 0:00:03]} 38. Kg3 {[%clk 0:00:04]}  Rd3 {[%clk 0:00:02]} 39. Ra7 {[%clk 0:00:04]}  Rd6 {[%clk 0:00:01]} 40. Re4 {[%clk 0:00:03]}  Rb8 {[%clk 0:00:02]} 41. b3 {[%clk 0:00:04]}  Rb5 {[%clk 0:00:02]} 42. Rc4 {[%clk 0:00:04]}  Rf5 {[%clk 0:00:01]} 43. Rc8+ {[%clk 0:00:04]}  Kh7 {[%clk 0:00:02]} 44. Rcc7 {[%clk 0:00:05]}  Kg6 {[%clk 0:00:02]} 45. h4 {[%clk 0:00:05]}  h5 {[%clk 0:00:02]} 46. Rc8 {[%clk 0:00:04]}  Rd4 {[%clk 0:00:02]} 47. Rc4 {[%clk 0:00:04]}  Rd1 {[%clk 0:00:02]} 48. Rxa6 {[%clk 0:00:03]}  Rg1+ {[%clk 0:00:02]} 49. Kh2 {[%clk 0:00:04]}  Rf1 {[%clk 0:00:03]} 50. Kg2 {[%clk 0:00:04]}  Rd1 {[%clk 0:00:03]} 51. a4 {[%clk 0:00:03]}  Rfd5 {[%clk 0:00:03]} 52. Rc2 {[%clk 0:00:02]}  Rb1 {[%clk 0:00:04]} 53. Rb6 {[%clk 0:00:02]}  Rdd1 {[%clk 0:00:03]} 54. Kf2 {[%clk 0:00:02]}  Rh1 {[%clk 0:00:03]} 55. Ke3 {[%clk 0:00:02]}  Rxh4 {[%clk 0:00:03]} 56. Rg2+ {[%clk 0:00:02]}  Kf6 {[%clk 0:00:03]} 57. a5 {[%clk 0:00:03]}  Ra1 {[%clk 0:00:02]} 58. a6 {[%clk 0:00:03]}  Rhh1 {[%clk 0:00:03]} 59. b4 {[%clk 0:00:04]}  h4 {[%clk 0:00:04]} 60. b5 {[%clk 0:00:03]}  h3 {[%clk 0:00:04]} 61. Re2 {[%clk 0:00:03]}  h2 {[%clk 0:00:05]} 62. Rb8 {[%clk 0:00:03]}  Rhe1 {[%clk 0:00:02]} 63. Rh8 {[%clk 0:00:04]}  h1=Q {[%clk 0:00:02]} 64. Rxh1 {[%clk 0:00:03]}  Rxh1 {[%clk 0:00:03]} 65. Rb2 {[%clk 0:00:04]}  Rh5 {[%clk 0:00:02]} 66. b6 {[%clk 0:00:03]}  Ra3+ {[%clk 0:00:02]} 67. Kf2 {[%clk 0:00:03]}  Rxa6 {[%clk 0:00:02]} 68. b7 {[%clk 0:00:04]}  Rh2+ {[%clk 0:00:02]} 69. Kg3 {[%clk 0:00:03]}  Rxb2 {[%clk 0:00:03]} 0-1


[Site "https://www.chess.com"]

[Event "Titled Tuesday Blitz May 11 2021"]
[White "Idani, Pouya"]
[Black "Indjic, Aleksandar"]
[WhiteFideId "12510130"]
[BlackFideId "911925"]
[WhiteElo "2610"]
[BlackElo "2643"]
[Result "0-1"]
[Round "09"]
[TimeControl "180+1"]
[Date "2021.05.11"]
[WhiteClock "0:00:01"]
[BlackClock "0:00:04"]

1. e4 {[%clk 0:02:56]}  e5 {[%clk 0:02:55]} 2. Nf3 {[%clk 0:02:53]}  Nf6 {[%clk 0:02:55]} 3. Nxe5 {[%clk 0:02:51]}  d6 {[%clk 0:02:55]} 4. Nf3 {[%clk 0:02:51]}  Nxe4 {[%clk 0:02:55]} 5. Qe2 {[%clk 0:02:52]}  Qe7 {[%clk 0:02:54]} 6. d3 {[%clk 0:02:52]}  Nf6 {[%clk 0:02:54]} 7. Bg5 {[%clk 0:02:53]}  Nbd7 {[%clk 0:02:53]} 8. Nc3 {[%clk 0:02:53]}  h6 {[%clk 0:02:53]} 9. Bd2 {[%clk 0:02:52]}  Qxe2+ {[%clk 0:02:52]} 10. Bxe2 {[%clk 0:02:53]}  Nb6 {[%clk 0:02:47]} 11. O-O-O {[%clk 0:02:52]}  a6 {[%clk 0:02:33]} 12. Rde1 {[%clk 0:02:48]}  Kd8 {[%clk 0:02:31]} 13. h3 {[%clk 0:02:46]}  g6 {[%clk 0:02:31]} 14. g4 {[%clk 0:02:28]}  Bg7 {[%clk 0:02:29]} 15. Nh2 {[%clk 0:02:25]}  Nfd5 {[%clk 0:02:16]} 16. Ne4 {[%clk 0:01:57]}  Na4 {[%clk 0:02:12]} 17. c3 {[%clk 0:01:55]}  b5 {[%clk 0:02:02]} 18. Kc2 {[%clk 0:01:45]}  Rb8 {[%clk 0:01:56]} 19. d4 {[%clk 0:01:36]}  b4 {[%clk 0:01:40]} 20. c4 {[%clk 0:01:35]}  f5 {[%clk 0:01:29]} 21. gxf5 {[%clk 0:01:26]}  Bxf5 {[%clk 0:01:27]} 22. Bd3 {[%clk 0:01:24]}  Ne7 {[%clk 0:01:10]} 23. b3 {[%clk 0:01:20]}  Nb6 {[%clk 0:01:07]} 24. Be3 {[%clk 0:01:11]}  d5 {[%clk 0:01:00]} 25. Nd2 {[%clk 0:01:11]}  dxc4 {[%clk 0:00:58]} 26. bxc4 {[%clk 0:01:09]}  a5 {[%clk 0:00:58]} 27. d5 {[%clk 0:01:03]}  Nd7 {[%clk 0:00:57]} 28. Bxf5 {[%clk 0:00:58]}  Nxf5 {[%clk 0:00:58]} 29. Nhf3 {[%clk 0:00:56]}  a4 {[%clk 0:00:55]} 30. Rhg1 {[%clk 0:00:53]}  g5 {[%clk 0:00:25]} 31. h4 {[%clk 0:00:40]}  gxh4 {[%clk 0:00:24]} 32. Nxh4 {[%clk 0:00:39]}  Nxe3+ {[%clk 0:00:24]} 33. Rxe3 {[%clk 0:00:39]}  Bf6 {[%clk 0:00:25]} 34. Nf5 {[%clk 0:00:35]}  Nc5 {[%clk 0:00:23]} 35. f4 {[%clk 0:00:32]}  Rf8 {[%clk 0:00:23]} 36. Rh1 {[%clk 0:00:23]}  Bc3 {[%clk 0:00:22]} 37. Nxh6 {[%clk 0:00:20]}  Bd4 {[%clk 0:00:19]} 38. Rf3 {[%clk 0:00:18]}  b3+ {[%clk 0:00:19]} 39. axb3 {[%clk 0:00:17]}  a3 {[%clk 0:00:19]} 40. b4 {[%clk 0:00:14]}  a2 {[%clk 0:00:17]} 41. Ra3 {[%clk 0:00:13]}  Rxb4 {[%clk 0:00:15]} 42. Rxa2 {[%clk 0:00:11]}  Rxf4 {[%clk 0:00:15]} 43. Rh3 {[%clk 0:00:07]}  Rf2 {[%clk 0:00:14]} 44. Ng4 {[%clk 0:00:07]}  Re2 {[%clk 0:00:12]} 45. Kd1 {[%clk 0:00:05]}  Rg2 {[%clk 0:00:12]} 46. Ne3 {[%clk 0:00:06]}  Rb1+ {[%clk 0:00:10]} 47. Nxb1 {[%clk 0:00:05]}  Rxa2 {[%clk 0:00:09]} 48. Nf5 {[%clk 0:00:05]}  Be5 {[%clk 0:00:09]} 49. Nd2 {[%clk 0:00:05]}  Kd7 {[%clk 0:00:07]} 50. Nf3 {[%clk 0:00:05]}  Bf4 {[%clk 0:00:07]} 51. Rh7+ {[%clk 0:00:05]}  Kc8 {[%clk 0:00:06]} 52. Ke1 {[%clk 0:00:04]}  Ne4 {[%clk 0:00:05]} 53. Re7 {[%clk 0:00:03]}  Nc3 {[%clk 0:00:05]} 54. Kf1 {[%clk 0:00:03]}  Na4 {[%clk 0:00:03]} 55. Re4 {[%clk 0:00:02]}  Bd6 {[%clk 0:00:03]} 56. Nxd6+ {[%clk 0:00:02]}  cxd6 {[%clk 0:00:04]} 57. Nd4 {[%clk 0:00:02]}  Nc5 {[%clk 0:00:04]} 58. Re7 {[%clk 0:00:02]}  Kd8 {[%clk 0:00:04]} 59. Rh7 {[%clk 0:00:02]}  Ke8 {[%clk 0:00:04]} 60. Nb5 {[%clk 0:00:02]}  Ne4 {[%clk 0:00:04]} 61. Rh4 {[%clk 0:00:01]}  Nd2+ {[%clk 0:00:04]} 0-1


[Site "https://www.chess.com"]